fUSD/lending_fUSD_20250309
["ID","MTS","AMOUNT","RATE_DAILY","PERIOD"]
[355730756,1741513833324,-500.0,9.191e-05,2]
[355730757,1741513833337,-2272.35,9.191e-05,2]
[355730758,1741513833347,-1365.13,9.191e-05,2]
[355730759,1741513833357,-500.0,9.191e-05,2]
[355730760,1741513833366,-500.0,9.191e-05,2]
[355730761,1741513833378,-739.66,9.191e-05,2]
[355730762,1741513833390,-284.78519052,9.191e-05,2]
[355730763,1741513833399,-500.0,9.191e-05,2]
[355730764,1741513833409,-500.0,9.191e-05,2]
[355730765,1741513833419,-2582.02,9.191e-05,2]
[355730766,1741513833429,-2510.9,9.191e-05,2]
[355730767,1741513833439,-500.0,9.191e-05,2]
[355730768,1741513833449,-500.0,9.191e-05,2]
[355730769,1741513833458,-1786.65,9.191e-05,2]
[355730770,1741513833468,-500.0,9.191e-05,2]
[355730771,1741513833478,-500.0,9.191e-05,2]
[355730772,1741513833488,-1459.47,9.191e-05,2]
[355730773,1741513833498,-500.0,9.191e-05,2]
[355730774,1741513833508,-500.0,9.191e-05,2]
[355730775,1741513833518,-1184.24,9.191e-05,2]
[355730776,1741513833527,-1349.98,9.191e-05,2]
[355730777,1741513833537,-500.0,9.191e-05,2]
[355730778,1741513833547,-500.0,9.191e-05,2]
[355730779,1741513833558,-500.0,9.191e-05,2]
[355730780,1741513833568,-500.0,9.191e-05,2]
[355730781,1741513833578,-500.0,9.191e-05,2]
[355730782,1741513833588,-500.0,9.191e-05,2]
[355730783,1741513833598,-1254.05,9.191e-05,2]
[355730784,1741513833608,-500.0,9.191e-05,2]
[355730785,1741513833618,-500.0,9.191e-05,2]
[355730786,1741513833628,-6465.62,9.191e-05,2]
[355730787,1741513833638,-689.79,9.191e-05,2]
[355730788,1741513833647,-500.0,9.191e-05,2]
[355730789,1741513833657,-1270.66,9.191e-05,2]
[355730790,1741513833667,-500.0,9.191e-05,2]
[355730791,1741513833677,-500.0,9.191e-05,2]
[355730792,1741513833687,-500.0,9.191e-05,2]
[355730793,1741513833696,-3068.1,9.191e-05,2]
[355730794,1741513833706,-500.0,9.191e-05,2]
[355730795,1741513833716,-2063.39,9.191e-05,2]
[355730796,1741513833727,-500.0,9.191e-05,2]
[355730797,1741513833737,-500.0,9.191e-05,2]
[355730798,1741513833747,-1809.09,9.191e-05,2]
[355730799,1741513833757,-500.0,9.191e-05,2]
[355730800,1741513833767,-500.0,9.191e-05,2]
[355730801,1741513833777,-1001.97,9.191e-05,2]
[355730802,1741513833786,-684.39,9.191e-05,2]
[355730803,1741513833796,-500.0,9.191e-05,2]
[355730804,1741513833806,-500.0,9.191e-05,2]
[355730805,1741513833815,-2342.7,9.191e-05,2]
[355730806,1741513833825,-500.0,9.191e-05,2]
[355730807,1741513833834,-500.0,9.191e-05,2]
[355730808,1741513833844,-728.13,9.191e-05,2]
[355730809,1741513833854,-500.0,9.191e-05,2]
[355730810,1741513833864,-657.17,9.191e-05,2]
[355730811,1741513834176,-819.33,9.191e-05,2]
[355730812,1741513834186,-500.0,9.191e-05,2]
[355730813,1741513834196,-500.0,9.191e-05,2]
[355730814,1741513834205,-500.0,9.191e-05,2]
[355730815,1741513834214,-888.44,9.191e-05,2]
[355730816,1741513834224,-500.0,9.191e-05,2]
[355730817,1741513834233,-1296.5,9.191e-05,2]
[355730818,1741513834243,-500.0,9.191e-05,2]
[355730819,1741513834252,-500.0,9.191e-05,2]
[355730820,1741513834261,-1230.99,9.191e-05,2]
[355730821,1741513834271,-500.0,9.191e-05,2]
[355730822,1741513834281,-500.0,9.191e-05,2]
[355730823,1741513834290,-618.18,9.191e-05,2]
[355730824,1741513834299,-500.0,9.191e-05,2]
[355730825,1741513834309,-500.0,9.191e-05,2]
[355730826,1741513834319,-500.0,9.191e-05,2]
[355730827,1741513834329,-541.53,9.191e-05,2]
[355730828,1741513834340,-500.0,9.191e-05,2]
[355730829,1741513834351,-5276.59,9.191e-05,2]
[355730830,1741513834361,-500.0,9.191e-05,2]
[355730831,1741513834370,-500.0,9.191e-05,2]
[355730832,1741513834385,-500.0,9.191e-05,2]
[355730833,1741513834394,-618.84,9.191e-05,2]
[355730834,1741513834404,-1070.65,9.191e-05,2]
[355730835,1741513834414,-500.0,9.191e-05,2]
[355730836,1741513834425,-1047.3,9.191e-05,2]
[355730837,1741513834435,-500.0,9.191e-05,2]
[355730838,1741513834446,-500.0,9.191e-05,2]
[355730839,1741513834456,-500.0,9.191e-05,2]
[355730840,1741513834466,-1446.66,9.191e-05,2]
[355730841,1741513834477,-500.0,9.191e-05,2]
[355730842,1741513834487,-763.36,9.191e-05,2]
[355730843,1741513834496,-500.0,9.191e-05,2]
[355730844,1741513834506,-500.0,9.191e-05,2]
[355730845,1741513834515,-500.0,9.192e-05,2]
[355730846,1741513834526,-500.0,9.192e-05,2]
[355730847,1741513834535,-500.0,9.192e-05,2]
[355730848,1741513834545,-548.70934023,9.192e-05,2]
[355730849,1741513834554,-500.0,9.192e-05,2]
[355730850,1741513834563,-500.0,9.192e-05,2]
[355730851,1741513834572,-500.0,9.192e-05,2]
[355730852,1741513834582,-509.16418735,9.192e-05,2]
[355730853,1741513834591,-500.0,9.192e-05,2]
[355730854,1741513834601,-500.0,9.192e-05,2]
[355730855,1741513834611,-500.0,9.192e-05,2]
[355730856,1741513834621,-500.0,9.192e-05,2]
[355730857,1741513834631,-317.54805982,9.192e-05,2]
[355730858,1741513834640,-500.0,9.192e-05,2]
[355730859,1741513834649,-500.0,9.192e-05,2]
[355730860,1741513834659,-500.0,9.192e-05,2]
[355730861,1741513834668,-500.0,9.192e-05,2]
[355730862,1741513834677,-500.0,9.192e-05,2]
[355730863,1741513834687,-500.0,9.192e-05,2]
[355730864,1741513834696,-500.0,9.192e-05,2]
[355730865,1741513834705,-500.0,9.192e-05,2]
[355730866,1741513834715,-500.0,9.192e-05,2]
[355730867,1741513834724,-500.0,9.192e-05,2]
[355730868,1741513834734,-500.0,9.192e-05,2]
[355730869,1741513834745,-500.0,9.192e-05,2]
[355730870,1741513834754,-500.0,9.192e-05,2]
[355730871,1741513834763,-500.0,9.192e-05,2]
[355730872,1741513834773,-500.0,9.192e-05,2]
[355730873,1741513834782,-500.0,9.192e-05,2]
[355730874,1741513834791,-500.0,9.192e-05,2]
[355730875,1741513834800,-275.87862324,9.192e-05,2]
[355730876,1741513834810,-526.98465145,9.192e-05,2]
[355730877,1741513834819,-500.0,9.192e-05,2]
[355730878,1741513834828,-500.0,9.192e-05,2]
[355730879,1741513834837,-500.0,9.192e-05,2]
[355730880,1741513834846,-500.0,9.192e-05,2]
[355730881,1741513834856,-501.89,9.192e-05,2]
[355730882,1741513834865,-500.0,9.192e-05,2]
[355730883,1741513834875,-500.0,9.192e-05,2]
[355730884,1741513834884,-500.0,9.192e-05,2]
[355730885,1741513834893,-500.0,9.192e-05,2]
[355730886,1741513834903,-500.0,9.192e-05,2]
[355730887,1741513834912,-500.0,9.192e-05,2]
[355730888,1741513834922,-474.6523215,9.192e-05,2]
[355730889,1741513834936,-500.0,9.192e-05,2]
[355730890,1741513834945,-500.0,9.192e-05,2]
[355730891,1741513834955,-510.7883896,9.192e-05,2]
[355730892,1741513834965,-500.0,9.192e-05,2]
[355730893,1741513834975,-258.8204571,9.192e-05,2]
[355730894,1741513834986,-689.35,9.192e-05,2]
[355730895,1741513834995,-503.31743744,9.192e-05,2]
[355730896,1741513835004,-500.0,9.192e-05,2]
[355730897,1741513835014,-507.65921265,9.192e-05,2]
[355730898,1741513835023,-496.10155196,9.192e-05,2]
[355730899,1741513835032,-500.0,9.192e-05,2]
[355730900,1741513835042,-500.0,9.192e-05,2]
[355730901,1741513835051,-500.0,9.192e-05,2]
[355730902,1741513835061,-500.0,9.192e-05,2]
[355730903,1741513835070,-500.0,9.192e-05,2]
[355730904,1741513835079,-500.0,9.192e-05,2]
[355730905,1741513835088,-565.44,9.192e-05,2]
[355730906,1741513835098,-274.13,9.192e-05,2]
[355730907,1741513835107,-500.0,9.192e-05,2]
[355730908,1741513835116,-539.17,9.192e-05,2]
[355730909,1741513835125,-500.0,9.192e-05,2]
[355730910,1741513835135,-500.0,9.192e-05,2]
[355730911,1741513835144,-500.0,9.192e-05,2]
[355730912,1741513835154,-500.0,9.192e-05,2]
[355730913,1741513835163,-500.0,9.192e-05,2]
[355730914,1741513835173,-500.0,9.192e-05,2]
[355730915,1741513835182,-500.0,9.192e-05,2]
[355730916,1741513835191,-468.35,9.192e-05,2]
[355730917,1741513835201,-578.22137468,9.192e-05,2]
[355730918,1741513835210,-500.0,9.192e-05,2]
[355730919,1741513835220,-500.0,9.192e-05,2]
[355730920,1741513835230,-500.0,9.192e-05,2]
[355730921,1741513835239,-500.0,9.192e-05,2]
[355730922,1741513835249,-500.0,9.192e-05,2]
[355730923,1741513835258,-500.0,9.192e-05,2]
[355730924,1741513835268,-500.0,9.192e-05,2]
[355730925,1741513835278,-500.0,9.192e-05,2]
[355730926,1741513835287,-500.0,9.192e-05,2]
[355730927,1741513835296,-500.0,9.192e-05,2]
[355730928,1741513835307,-500.0,9.192e-05,2]
[355730929,1741513835316,-500.0,9.192e-05,2]
[355730930,1741513835325,-500.0,9.192e-05,2]
[355730931,1741513835335,-500.0,9.192e-05,2]
[355730932,1741513835345,-500.0,9.192e-05,2]
[355730933,1741513835355,-500.0,9.192e-05,2]
[355730934,1741513835365,-500.0,9.192e-05,2]
[355730935,1741513835374,-500.0,9.192e-05,2]
[355730936,1741513835388,-500.0,9.192e-05,2]
[355730937,1741513835398,-500.0,9.192e-05,2]
[355730938,1741513835407,-500.0,9.192e-05,2]
[355730939,1741513835417,-498.11946697,9.192e-05,2]
[355730940,1741513835426,-500.0,9.192e-05,2]
[355730941,1741513835437,-500.0,9.192e-05,2]
[355730942,1741513835446,-500.0,9.192e-05,2]
[355730943,1741513835457,-500.0,9.192e-05,2]
[355730944,1741513835466,-500.0,9.192e-05,2]
[355730945,1741513835476,-180.43,9.192e-05,2]
[355730946,1741513835485,-500.0,9.192e-05,2]
[355730947,1741513835494,-500.0,9.192e-05,2]
[355730948,1741513835503,-500.0,9.192e-05,2]
[355730949,1741513835513,-500.0,9.192e-05,2]
[355730950,1741513835522,-500.0,9.192e-05,2]
[355730951,1741513835531,-501.29179972,9.192e-05,2]
[355730952,1741513835540,-500.0,9.192e-05,2]
[355730953,1741513835549,-500.0,9.192e-05,2]
[355730954,1741513835559,-500.0,9.192e-05,2]
[355730955,1741513835568,-555.87,9.192e-05,2]
[355730956,1741513835578,-500.0,9.192e-05,2]
[355730957,1741513835588,-239.8,9.192e-05,2]
[355730958,1741513835597,-500.0,9.192e-05,2]
[355730959,1741513835607,-500.0,9.192e-05,2]
[355730960,1741513835617,-500.0,9.192e-05,2]
[355730961,1741513835627,-500.0,9.192e-05,2]
[355730962,1741513835636,-500.0,9.192e-05,2]
[355730963,1741513835646,-500.0,9.192e-05,2]
[355730964,1741513835656,-500.0,9.192e-05,2]
[355730965,1741513835665,-500.0,9.192e-05,2]
[355730966,1741513835675,-604.31,9.192e-05,2]
[355730967,1741513835684,-500.0,9.192e-05,2]
[355730968,1741513835693,-500.0,9.192e-05,2]
[355730969,1741513835703,-500.0,9.192e-05,2]
[355730970,1741513835712,-500.0,9.192e-05,2]
[355730971,1741513835722,-948.16,9.192e-05,2]
[355730972,1741513835731,-500.0,9.192e-05,2]
[355730973,1741513835741,-500.0,9.192e-05,2]
[355730974,1741513835750,-975.55,9.192e-05,2]
[355730975,1741513835759,-500.0,9.192e-05,2]
[355730976,1741513835769,-500.0,9.192e-05,2]
[355730977,1741513835778,-500.0,9.192e-05,2]
[355730978,1741513835787,-457.09853452,9.192e-05,2]
[355730979,1741513835796,-248.48898504,9.192e-05,2]
[355730980,1741513835805,-500.0,9.192e-05,2]
[355730981,1741513835814,-500.0,9.192e-05,2]
[355730982,1741513835823,-500.0,9.192e-05,2]
[355730983,1741513835832,-505.09394784,9.192e-05,2]
[355730984,1741513835842,-500.0,9.192e-05,2]
[355730985,1741513835850,-740.76,9.192e-05,2]
[355730986,1741513835860,-500.0,9.192e-05,2]
[355730987,1741513835869,-500.0,9.192e-05,2]
[355730988,1741513835878,-500.0,9.192e-05,2]
[355730989,1741513835888,-500.0,9.192e-05,2]
[355730990,1741513835897,-500.0,9.192e-05,2]
[355730991,1741513835906,-866.13,9.192e-05,2]
[355730992,1741513835915,-500.0,9.192e-05,2]
[355730993,1741513835924,-604.74,9.192e-05,2]
[355730994,1741513835933,-500.0,9.192e-05,2]
[355730995,1741513835943,-500.0,9.192e-05,2]
[355730996,1741513835952,-583.74,9.192e-05,2]
[355730997,1741513835961,-613.34557123,9.192e-05,2]
[355730998,1741513835971,-694.72,9.192e-05,2]
[355730999,1741513835980,-500.0,9.192e-05,2]
[355731000,1741513835989,-627.69,9.192e-05,2]
[355731001,1741513835998,-500.0,9.192e-05,2]
[355731002,1741513836008,-804.39,9.192e-05,2]
[355731003,1741513836018,-500.0,9.192e-05,2]
[355731004,1741513836027,-506.89341353,9.192e-05,2]
[355731005,1741513836037,-500.0,9.192e-05,2]
[355731006,1741513836046,-500.0,9.192e-05,2]
[355731007,1741513836056,-423.46,9.192e-05,2]
[355731008,1741513836065,-500.0,9.192e-05,2]
[355731009,1741513836075,-711.28,9.192e-05,2]
[355731010,1741513836084,-500.0,9.192e-05,2]
[355731011,1741513836093,-805.97,9.192e-05,2]
[355731012,1741513836104,-153.48,9.192e-05,2]
[355731013,1741513836113,-500.0,9.192e-05,2]
[355731014,1741513836122,-500.0,9.192e-05,2]
[355731015,1741513836132,-500.0,9.192e-05,2]
[355731016,1741513836142,-679.35,9.192e-05,2]
[355731017,1741513836151,-719.95,9.192e-05,2]
[355731018,1741513836161,-4090.79,9.192e-05,2]
[355731019,1741513836170,-659.91,9.192e-05,2]
[355731020,1741513836180,-1449.57,9.192e-05,2]
[355731021,1741513836189,-723.72,9.192e-05,2]
[355731022,1741513836198,-500.0,9.192e-05,2]
[355731023,1741513836209,-1477.63,9.192e-05,2]
[355731024,1741513836219,-500.0,9.192e-05,2]
[355731025,1741513836229,-467.78,9.192e-05,2]
[355731026,1741513836238,-1921.66,9.192e-05,2]
[355731027,1741513836247,-500.0,9.192e-05,2]
[355731028,1741513836257,-740.42,9.192e-05,2]
[355731029,1741513836267,-944.69,9.192e-05,2]
[355731030,1741513836276,-2152.3,9.192e-05,2]
[355731031,1741513836286,-500.0,9.192e-05,2]
[355731032,1741513836295,-836.92,9.192e-05,2]
[355731033,1741513836305,-500.0,9.192e-05,2]
[355731034,1741513836314,-500.0,9.192e-05,2]
[355731035,1741513836323,-500.0,9.192e-05,2]
[355731036,1741513836332,-1272.26,9.192e-05,2]
[355731037,1741513836341,-678.42,9.192e-05,2]
[355731038,1741513836353,-500.0,9.192e-05,2]
[355731039,1741513836363,-3156.26,9.192e-05,2]
[355731040,1741513836373,-500.0,9.192e-05,2]
[355731041,1741513836387,-500.0,9.192e-05,2]
[355731042,1741513836396,-950.87,9.192e-05,2]
[355731043,1741513836406,-596.85,9.192e-05,2]
[355731044,1741513836415,-500.0,9.192e-05,2]
[355731045,1741513836425,-500.0,9.192e-05,2]
[355731046,1741513836435,-500.0,9.192e-05,2]
[355731047,1741513836445,-500.0,9.192e-05,2]
[355731048,1741513836455,-500.0,9.192e-05,2]
[355731049,1741513836465,-500.0,9.192e-05,2]
[355731050,1741513836474,-865.49,9.192e-05,2]
[355731051,1741513836483,-500.0,9.192e-05,2]
[355731052,1741513836493,-513.15,9.192e-05,2]
[355731053,1741513836502,-930.53,9.192e-05,2]
[355731054,1741513836512,-550.31,9.192e-05,2]
[355731055,1741513836521,-268.64,9.192e-05,2]
[355731056,1741513836531,-1045.76,9.192e-05,2]
[355731057,1741513836540,-1062.36,9.192e-05,2]
[355731058,1741513836550,-564.88941746,9.192e-05,2]
[355731059,1741513836560,-500.0,9.192e-05,2]
[355731060,1741513836569,-467.97,9.192e-05,2]
[355731061,1741513836578,-1344.3,9.192e-05,2]
[355731062,1741513836587,-2268.86,9.192e-05,2]
[355731063,1741513836601,-2109.38,9.192e-05,2]
[355731064,1741513836611,-500.0,9.192e-05,2]
[355731065,1741513836620,-583.05,9.192e-05,2]
[355731066,1741513836629,-11875.88,9.192e-05,2]
[355731067,1741513836638,-500.0,9.192e-05,2]
[355731068,1741513836648,-298.06,9.192e-05,2]
[355731069,1741513836657,-160.08,9.192e-05,2]
[355731070,1741513836667,-1130.22,9.192e-05,2]
[355731071,1741513836676,-331.21,9.192e-05,2]
[355731072,1741513836685,-514.99,9.192e-05,2]
[355731073,1741513836694,-734.41,9.192e-05,2]
[355731074,1741513836703,-500.0,9.192e-05,2]
[355731075,1741513836712,-252.17278364,9.192e-05,2]
[355731076,1741513836723,-500.0,9.192e-05,2]
[355731077,1741513836732,-500.0,9.192e-05,2]
[355731078,1741513836742,-600.91537731,9.192e-05,2]
[355731079,1741513836751,-500.0,9.192e-05,2]
[355731080,1741513836763,-500.0,9.192e-05,2]
[355731081,1741513836772,-500.0,9.192e-05,2]
[355731082,1741513836782,-500.0,9.192e-05,2]
[355731083,1741513836791,-500.0,9.192e-05,2]
[355731084,1741513836800,-500.0,9.192e-05,2]
[355731085,1741513836810,-300.0,9.192e-05,2]
[355731086,1741513836819,-119852.43413572,9.192e-05,2]
[355731087,1741513836829,-257.68968683,9.193e-05,2]
[355731088,1741513836838,-40000.0,9.193e-05,2]
[355731089,1741513836847,-500.0,9.193e-05,2]
[355731090,1741513836857,-500.0,9.193e-05,2]
[355731091,1741513836867,-500.0,9.193e-05,2]
[355731092,1741513836876,-500.0,9.193e-05,2]
[355731093,1741513836885,-500.0,9.193e-05,2]
[355731094,1741513836894,-500.0,9.193e-05,2]
[355731095,1741513836903,-500.0,9.193e-05,2]
[355731096,1741513836913,-500.0,9.193e-05,2]
[355731097,1741513836922,-500.0,9.193e-05,2]
[355731098,1741513836932,-500.0,9.193e-05,2]
[355731099,1741513836941,-500.0,9.193e-05,2]
[355731100,1741513836950,-500.0,9.193e-05,2]
[355731101,1741513836960,-500.0,9.193e-05,2]
[355731102,1741513836969,-501.77812681,9.193e-05,2]
[355731103,1741513836978,-500.0,9.193e-05,2]
[355731104,1741513836987,-151.0,9.193e-05,2]
[355731105,1741513836997,-500.00000028,9.193e-05,2]
[355731106,1741513837006,-500.0,9.193e-05,2]
[355731107,1741513837016,-500.0,9.193e-05,2]
[355731108,1741513837025,-507.86566501,9.193e-05,2]
[355731109,1741513837035,-500.0,9.193e-05,2]
[355731110,1741513837044,-500.0,9.193e-05,2]
[355731111,1741513837054,-325.79267,9.193e-05,2]
[355731112,1741513837063,-325.79267,9.193e-05,2]
[355731113,1741513837072,-825.767552,9.193e-05,2]
[355731114,1741513837082,-825.767552,9.193e-05,2]
[355731115,1741513837092,-825.767552,9.193e-05,2]
[355731116,1741513837101,-825.767552,9.193e-05,2]
[355731117,1741513837110,-151.0,9.193e-05,2]
[355731118,1741513837120,-151.0,9.193e-05,2]
[355731119,1741513837132,-339.492381,9.193e-05,2]
[355731120,1741513837142,-339.492381,9.193e-05,2]
[355731121,1741513837151,-339.492381,9.193e-05,2]
[355731122,1741513837161,-339.492381,9.193e-05,2]
[355731123,1741513837171,-616.441805,9.193e-05,2]
[355731124,1741513837180,-616.441805,9.193e-05,2]
[355731125,1741513837190,-616.441805,9.193e-05,2]
[355731126,1741513837199,-616.441805,9.193e-05,2]
[355731127,1741513837209,-151.0,9.193e-05,2]
[355731128,1741513837218,-151.0,9.193e-05,2]
[355731129,1741513837228,-348.520028,9.193e-05,2]
[355731130,1741513837237,-348.520028,9.193e-05,2]
[355731131,1741513837246,-348.520028,9.193e-05,2]
[355731132,1741513837256,-348.520028,9.193e-05,2]
[355731133,1741513837266,-261.111914,9.193e-05,2]
[355731134,1741513837276,-261.111914,9.193e-05,2]
[355731135,1741513837285,-261.111914,9.193e-05,2]
[355731136,1741513837295,-261.111914,9.193e-05,2]
[355731137,1741513837305,-1007.633786,9.193e-05,2]
[355731138,1741513837314,-1007.633786,9.193e-05,2]
[355731139,1741513837324,-1007.633786,9.193e-05,2]
[355731140,1741513837333,-1007.633786,9.193e-05,2]
[355731141,1741513837343,-757.237358,9.193e-05,2]
[355731142,1741513837352,-757.237358,9.193e-05,2]
[355731143,1741513837362,-757.237358,9.193e-05,2]
[355731144,1741513837377,-757.237358,9.193e-05,2]
[355731145,1741513837389,-824.768537,9.193e-05,2]
[355731146,1741513837399,-824.768537,9.193e-05,2]
[355731147,1741513837409,-824.768537,9.193e-05,2]
[355731148,1741513837420,-824.768537,9.193e-05,2]
[355731149,1741513837430,-824.768537,9.193e-05,2]
[355731150,1741513837440,-824.768537,9.193e-05,2]
[355731151,1741513837450,-1309.76,9.193e-05,2]
[355731152,1741513837460,-151.0,9.193e-05,2]
[355731153,1741513837471,-155.413413,9.193e-05,2]
[355731154,1741513837480,-8658.95,9.193e-05,2]
[355731155,1741513837491,-151.0,9.193e-05,2]
[355731156,1741513837501,-151.0,9.193e-05,2]
[355731157,1741513837510,-151.0,9.193e-05,2]
[355731158,1741513837519,-945.4,9.193e-05,2]
[355731159,1741513837529,-193.6,9.193e-05,2]
[355731160,1741513837539,-684.9,9.193e-05,2]
[355731161,1741513837549,-160.639098,9.193e-05,2]
[355731162,1741513837558,-160.639098,9.193e-05,2]
[355731163,1741513837568,-163.812386,9.193e-05,2]
[355731164,1741513837577,-160.639098,9.193e-05,2]
[355731165,1741513837587,-160.639098,9.193e-05,2]
[355731166,1741513837597,-1587.34,9.193e-05,2]
[355731167,1741513837609,-10000.0,9.193e-05,2]
[355731168,1741513837619,-151.0,9.193e-05,2]
[355731169,1741513837629,-10000.0,9.193e-05,2]
[355731170,1741513837639,-151.0,9.193e-05,2]
[355731171,1741513837648,-4640.06296561,9.193e-05,2]
[355731180,1741513839190,-1072.35,9.191e-05,2]
[355731181,1741513839202,-514.63,9.191e-05,2]
[355731182,1741513839212,-5359.93703439,9.193e-05,2]
[355731183,1741513839221,-151.0,9.193e-05,2]
[355731184,1741513839231,-151.0,9.193e-05,2]
[355731185,1741513839240,-7145.56582433,9.193e-05,2]
[355731186,1741513839252,-2854.43417567,9.193e-05,2]
[355731187,1741513839262,-151.0,9.193e-05,2]
[355731188,1741513839272,-6254.62405677,9.193e-05,2]
[355731189,1741513839284,-730.01771668,9.193e-05,2]
[355731190,1741513839304,-3015.35822655,9.193e-05,2]
[355731191,1741513839313,-151.0,9.193e-05,2]
[355731192,1741513839323,-10000.0,9.193e-05,2]
[355731193,1741513839333,-353.29,9.193e-05,2]
[355731194,1741513839343,-1734.2,9.193e-05,2]
[355731195,1741513839352,-132.87220038,9.193e-05,2]
[355731196,1741513839364,-1867.00645648,9.193e-05,2]
[355731197,1741513839376,-491.99999916,9.193e-05,2]
[355731198,1741513840254,-7508.12134398,9.193e-05,2]
[355731199,1741513840264,-4513.11828787,9.193e-05,2]
[355731200,1741513840366,-1203.2499875,9.193e-05,2]
[355731201,1741513840427,-4283.63172463,9.193e-05,2]
[355731202,1741513840437,-151.0,9.193e-05,2]
[355731203,1741513840447,-10000.0,9.193e-05,2]
[355731204,1741513840460,-151.0,9.193e-05,2]
[355731205,1741513840470,-151.0,9.193e-05,2]
[355731206,1741513840479,-151.0,9.193e-05,2]
[355731207,1741513840489,-151.0,9.193e-05,2]
[355731208,1741513840498,-151.0,9.193e-05,2]
[355731209,1741513840508,-151.0,9.193e-05,2]
[355731210,1741513840518,-151.0,9.193e-05,2]
[355731211,1741513840527,-10000.0,9.193e-05,2]
[355731212,1741513840536,-5574.59777055,9.193e-05,2]
[355731213,1741513840549,-4425.40222945,9.193e-05,2]
[355731214,1741513840559,-10000.0,9.193e-05,2]
[355731215,1741513840569,-151.0,9.193e-05,2]
[355731216,1741513840578,-297.366253,9.193e-05,2]
[355731217,1741513840588,-10000.0,9.193e-05,2]
[355731218,1741513840597,-10000.0,9.193e-05,2]
[355731219,1741513840608,-10000.0,9.193e-05,2]
[355731220,1741513840618,-959.33,9.193e-05,2]
[355731221,1741513840627,-285.489263,9.193e-05,2]
[355731222,1741513840636,-285.489263,9.193e-05,2]
[355731223,1741513840646,-995.32307813,9.193e-05,2]
[355731224,1741513840658,-253.7414997,9.193e-05,2]
[355731225,1741513841117,-0.0011861,9.193e-05,2]
[355731244,1741513843169,-500.0,9.191e-05,2]
[355731245,1741513843179,-500.0,9.191e-05,2]
[355731246,1741513843189,-1255.19,9.192e-05,2]
[355731247,1741513843199,-7.87423607,9.193e-05,2]
[355731249,1741513843209,-285.489263,9.193e-05,2]
[355731250,1741513843218,-285.489263,9.193e-05,2]
[355731251,1741513843229,-592.54,9.193e-05,2]
[355731252,1741513843238,-500.0,9.193e-05,2]
[355731253,1741513843248,-1902.19,9.193e-05,2]
[355731254,1741513843258,-500.0,9.193e-05,2]
[355731255,1741513843267,-1391.52,9.193e-05,2]
[355731256,1741513843277,-151.0,9.193e-05,2]
[355731257,1741513843287,-151.0,9.193e-05,2]
[355731258,1741513843297,-151.0,9.193e-05,2]
[355731259,1741513843307,-476.051386,9.193e-05,2]
[355731260,1741513843316,-476.051386,9.193e-05,2]
[355731261,1741513843325,-121.13869861,9.193e-05,2]
[355731263,1741513846180,-1049.99669866,9.191e-05,2]
[355731264,1741513846192,-857.82849578,9.191e-05,2]
[355731294,1741514316128,177.48,6.584e-05,2]
[355731300,1741514516380,-300.0,8.199e-05,2]
[355731301,1741514516405,-11000.0,8.2e-05,2]
[355731302,1741514555302,-2000.0,8.189e-05,2]
[355731304,1741514675455,200.0,7.883e-05,2]
[355731310,1741514803368,200.10676563,7.844e-05,2]
[355731351,1741514956379,-300.0,8.109e-05,2]
[355731386,1741514970111,-148.39,8.109e-05,2]
[355731387,1741514970143,-123.73090077,8.175e-05,2]
[355731388,1741515004158,-39.42909923,8.175e-05,2]
[355731389,1741515004184,-250.0,8.219e-05,2]
[355731390,1741515004211,-1000.0,8.219e-05,2]
[355731391,1741515004238,-1710.57090077,8.219e-05,2]
[355731406,1741515032394,-1005.59,8.119e-05,2]
[355731407,1741515032404,-42.24909923,8.219e-05,2]
[355731408,1741515032413,-200.0,8.224e-05,2]
[355731409,1741515032423,-412.29,8.231e-05,2]
[355731410,1741515032433,-1546.12,8.29e-05,2]
[355731411,1741515032442,-12291.48828797,8.3e-05,2]